Workbook

Sheet HOME
D1: 2020 v2 New Construction Application
D2: PNM Business Energy Efficiency Program
A16: Why improve energy efficiency?
B17: Directly improves profitability by cutting operating costs | E17: Distinguishes your business as an energy efficiency steward in the community | H17: Qualifies your business for rebates that can cover portions of the upgrade cost
A20: Application Process | F20: Click on a quick link below:
A22: 1. | B22: Submit a Pre-Notification Application to reserve funding (if required). | F22: Administrative
A25: 2. | B25: Install the qualified technology.
A27: 3. | B27: Complete, sign and submit Final Application with all required documentation within 6 months of project completion.
F28: Worksheets
A31: 4. | B31: The incentive check will be sent 4 to 6 weeks after approval of the Final Application.
A39: Contact Our PNM Business Energy Efficiency Team
A42: 320 Gold Avenue SW, Ste 500 Albuquerque, NM 87102 | D42: (505) 938-9400 Main (505) 938-9401 Fax | F42: energyefficiency@pnm.com
F43: www.pnmenergyefficiency.com

Sheet Applicant Info
D1: APPLICANT INFORMATION | J1: For office use only:
J2: Application # | K2: Revision #
A4: Application Type: | G4: Check ONE box below:*
C6: New Construction | H6: Pre-Notification | J6: Date | P6: =IF(G6>0,"Yes",) -> 0
H7: or | O7: New pre notification checkbox flag:
H8: Final Application | J8: Date | O8: FALSE
A10: Customer Information* | O10: Multifacility checkbox flag:
A11: PNM Account Number where measures installed | O11: FALSE
C13: This Application represents multiple accounts / premises | G13: 1. Enter number of Accounts / Premises -------> | K13: _________ | N13: =is -> 
G14: 2. If yes: Complete Multi-Facility Worksheet -------> CLICK HERE
A15: Building Type*
M16: Business Type | O16: Tax Status | Q16: State
A17: Name of Company* | G17: Name Exactly as it Appears on Your Utility Bill* | M17: Assembly | O17: Corporation (Inc, PC, etc.) | Q17: AL
M18: College/University | O18: Government Agency | Q18: AK
A19: Name of Contact Person* | G19: Title* | M19: Grocery | O19: Individual | Q19: AZ
M20: Heavy Industry | O20: Partnership | Q20: AR
A21: Telephone #* | G21: Fax # | M21: Hotel/Motel Common Areas | O21: Exempt | Q21: CA
A22: Email Address* | M22: Light Industry | Q22: CO
A23: Address Where Measures Installed* | M23: Medical | Q23: CT
A24: City Where Measures Installed* | G24: State* | I24: =IF(E24="","","NM") ->  | J24: Zip* | M24: Office | Q24: DE
A25: Mailing Address* | M25: Restaurant | Q25: FL
A26: City* | G26: State* | J26: Zip* | M26: Retail/Service | Q26: GA
A27: Taxpayer ID Number (SSN/FEIN)* | G27: Tax Status* | M27: K-12 School | Q27: HI
A28: Contractor Information | M28: Warehouse | Q28: ID
A29: Contracting Company* | M29: Dwelling Unit | Q29: IL
A30: Contractor Name* | G30: Contractor Phone Number* | M30: Miscellaneous | Q30: IN
A31: Contractor Email Address* | Q31: IA
A32: Contractor Mailing Address* | Q32: KS
A33: City* | G33: State* | J33: Zip* | Q33: KY
A34: Third Party Payment Release | Q34: LA
Q35: ME
C36: I request that the incentive check be sent to the third party below | H36: Check here if the third party payee is the contractor (Contractor must be a PNM Authorized Contractor to be eligible for third party payment) | Q36: MD
Q37: MA
A38: Name of Third Party* | Q38: MI
A39: Name of Third Party Contact Person* | G39: Title* | Q39: MN
Q40: MS
A41: Third Party Phone #* | G41: Fax # | Q41: MO
A42: Third Party Mailing Address* | Q42: MT
A43: Third Party City* | G43: State* | J43: Zip* | Q43: NE
A44: Third Party Email Address* | Q44: NV
A45: Third Party Taxpayer ID # (SSN/FEIN)* | G45: Tax Status* | Q45: NH
A46: Incentive Summary | Q46: NJ
A47: Total Incentive Requested | F47: Total Project Cost PRE-TAX * REQUIRED * | J47: =IF(O8=TRUE, "Estimated Project Completion Date", "Project Completion Date") -> Project Completion Date | Q47: NM
A48: =MIN(F65, F48*0.5,400000) -> 0 | Q48: NY
Q49: NC
A50: Incentive requested + 20% Bonus (valid 7/1/2020-12/31/2020 ONLY) *Any bonus offers are a limited time only, while funds are available and can be terminated at any time at the Program's discretion. | Q50: ND
A51: =MIN($F$65*1.2,$F$48*0.5,400000) -> 0 | Q51: OH
A52: AGREEMENT | Q52: OK
A53: I understand that in the event funds are reserved based on a pre-notification, the payment of incentives will be based upon the Final Application and program terms and conditions, and that the PNM Business Energy Efficiency program is subject to change or cancellation at any time and without notice. PNM is not responsible for any lost, late, stolen, ineligible, illegible, misdirected or postage-due mail. All completed submissions become the property of PNM and will not be returned. PNM makes no guarantees about the availability of products or rebate forms. By participating in the PNM Business Energy Efficiency program, customers agree to waive any claims and release PNM from any liability for damages of any kind. Rebates are funded by a charge on PNM electric customer bills. | Q53: OR
A54: I have read and understand the program requirements, measure specifications, and Terms & Conditions set forth in this application and agree to abide by those requirements. Furthermore, I concur that I must meet all eligibility criteria in order to be paid under this program. | Q54: PA
A55: As an eligible customer, I verify that the signature below is my own and that the information is correct. I am requesting consideration for participation under this program. By signing this agreement I attest that I understand and agree to abide by all Program terms and conditions. | Q55: RI
A56: Customer Signature (PNM Customer) | H56: Third Party Signature | Q56: SC
F57: Please sign by hand or via DocuSign® | Q57: SD
A58: Print Customer Name | H58: Print Third Party Name | Q58: TN
Q59: TX
A60: Date | H60: Date | Q60: UT
Q61: VT
Q62: VA
Q63: WA
Q64: WI
B65: For Office Use Only | F65: =SUM(F66:F71) -> 0 | Q65: WV
B66: HVAC | F66: =+HVAC!H59 -> 0 | Q66: WY
B67: Food Service Incentives | F67: ='Food Service'!J14 -> 0
B68: Custom Incentives | F68: =Custom!I51 -> 0
B69: NC Lighting Incentives | F69: =+'Interior Lighting'!H22 -> 0
B70: NC Exterior Lighting | F70: ='Exterior Lighting'!L25 -> 0
B71: NC Whole Building Incentives | F71: =+'NC Whole Bldg'!I55 -> 0

Sheet Checklist
D1: APPLICATION CHECKLIST
A61: APPLICATION CHECKLIST (CONTINUED)
E73: https://www.ahridirectory.org/ahridirectory/pages/home.aspx

Sheet Terms
A1: TERMS & CONDITIONS

Sheet Multi-Facility
B1: LIGHTING MULTIPLE FACILITY WORKSHEET
A2: Use this worksheet ONLY if installing the SAME measure in facilities with different service addresses and unique account numbers.
A3: If a project encompasses multiple buildings at the same premise, this worksheet is not required.
A4: For official use only | B4: Pre-Notification Date: | C4: =IF(ISBLANK('Applicant Info'!$K$6)," ",'Applicant Info'!$K$6) ->  | D4: Final Application Date: | E4: =IF(ISBLANK('Applicant Info'!$K$8)," ",'Applicant Info'!$K$8) -> 
A5: Application # | C5: Business Name: | D5: =IF(ISBLANK('Applicant Info'!$A$18)," ",'Applicant Info'!$A$18) -> 
A6: Prepared by: | B6: =IF(ISBLANK('Applicant Info'!$A$20)," ",'Applicant Info'!$A$20) ->  | D6: Contact #: | E6: ='Applicant Info'!$D$21 -> 0
A8: Project Locations
A9: Service Address | B9: Account # | C9: Replacement Equipment Type 1 | D9: Replacement Equipment Type 2 | E9: Replacement Equipment Qty | F9: Existing Equipment Description | G9: Existing Equipment Qty
A35: Total | E35: =SUM(E10:E34) -> 0 | G35: =SUM(G10:G34) -> 0
A200: Measure Type 1
A201: Interior Lighting
A202: Exterior Lighting
A203: 24/7 Lighting
A204: Plug Load Controls
A205: Custom
A206: HVAC
A207: Envelope
A208: Refrigeration
A209: Food Service Equipment
A210: Motors
A211: VSDs
A213: Measure Type 1 | B213: Measure Type 2 | C213: Unit | D213: Incentive | F213: Measure Type 1
A214: Interior Lighting | B214: Screw-in Compact Fluorescent Lights 5-15 Watts | C214: Lamp | D214: 1 | F214: Interior Lighting
A215: Interior Lighting | B215: Screw-in Compact Fluorescent Lights 16-26 Watts | C215: Lamp | D215: 1 | F215: Exterior Lighting
A216: Interior Lighting | B216: Screw-in Compact Fluorescent Lights 27 Watts or higher | C216: Lamp | D216: 2 | F216: 24/7 Lighting
A217: Interior Lighting | B217: Screw-in Compact Fluorescent Lights Inside Dwelling Units 5-15 Watts | C217: Lamp | D217: 1 | F217: HVAC
A218: Interior Lighting | B218: Screw-in Compact Fluorescent Lights Inside Dwelling Units 16-26 Watts | C218: Lamp | D218: 1 | F218: Envelope
A219: Interior Lighting | B219: Screw-in Compact Fluorescent Lights Inside Dwelling Units 27 Watts or higher | C219: Lamp | D219: 2 | F219: Refrigeration
A220: Interior Lighting | B220: Hardwired Compact Fluorescent Fixtures 29W or Less | C220: Fixture | D220: 20 | F220: Food Service Equipment
A221: Interior Lighting | B221: Hardwired Compact Fluorescent Fixtures 30W or Greater | C221: Fixture | D221: 40 | F221: Plug Load Controls
A222: Interior Lighting | B222: Hardwired Compact Fluorescent Lights Inside Dwelling Units 29W or Less | C222: Fixture | D222: 5 | F222: Motors
A223: Interior Lighting | B223: Hardwired Compact Fluorescent Lights Inside Dwelling Units 30W or Greater | C223: Fixture | D223: 10 | F223: VSDs
A224: Interior Lighting | B224: Permanent Removal of Lamp from Existing Fixture 2-ft Lamp - T12 basecase | C224: Lamp Removed | D224: 4.5
A225: Interior Lighting | B225: Permanent Removal of Lamp from Existing Fixture 3-ft Lamp - T12 basecase | C225: Lamp Removed | D225: 6
A226: Interior Lighting | B226: Permanent Removal of Lamp from Existing Fixture 4-ft Lamp - T12 basecase | C226: Lamp Removed | D226: 7.5
A227: Interior Lighting | B227: Permanent Removal of Lamp from Existing Fixture 8-ft Lamp - T12 basecase | C227: Lamp Removed | D227: 15
A228: Interior Lighting | B228: Permanent Removal of Lamp from Existing Fixture 2-ft Lamp - T8 basecase | C228: Lamp Removed | D228: 3
A229: Interior Lighting | B229: Permanent Removal of Lamp from Existing Fixture 3-ft Lamp - T8 basecase | C229: Lamp Removed | D229: 4
A230: Interior Lighting | B230: Permanent Removal of Lamp from Existing Fixture 4-ft Lamp - T8 basecase | C230: Lamp Removed | D230: 5
A231: Interior Lighting | B231: Permanent Removal of Lamp from Existing Fixture 8-ft Lamp - T8 basecase | C231: Lamp Removed | D231: 10
A232: Interior Lighting | B232: High Performance (HP) T8 or Reduced Wattage (RW) 4-Foot T8 and Electronic Ballast 4-ft HP Lamp and Ballast | C232: Lamp | D232: 6
A233: Interior Lighting | B233: High Performance (HP) T8 or Reduced Wattage (RW) 4-Foot T8 and Electronic Ballast 4-ft RW Lamp and Ballast | C233: Lamp | D233: 6
A234: Interior Lighting | B234: High Performance (HP) T8 or Reduced Wattage (RW) 4-Foot T8 and Electronic Ballast 1 Lamp 8-ft T12 to 2 Lamp 4-ft HP T8 | C234: Lamp | D234: 6
A235: Interior Lighting | B235: High Performance (HP) T8 or Reduced Wattage (RW) 4-Foot T8 and Electronic Ballast 1 Lamp 8-ft T12 to 2 Lamp 4-ft RW T8 | C235: Lamp | D235: 6
A236: Interior Lighting | B236: Standard T8 and Electronic Ballast 2-ft Lamp and Ballast | C236: Lamp | D236: 3
A237: Interior Lighting | B237: Standard T8 and Electronic Ballast 3-ft Lamp and Ballast | C237: Lamp | D237: 3
A238: Interior Lighting | B238: Standard T8 and Electronic Ballast 4-ft or U-Tube and Ballast | C238: Lamp | D238: 3
A239: Interior Lighting | B239: T12 to T5 Lamps and Ballast | C239: Lamp | D239: 6
A240: Interior Lighting | B240: Reduced Wattage 8 Foot T8 and Electronic Ballast 8-foot T12 to RW T8 | C240: Lamp | D240: 6
A241: Interior Lighting | B241: Reduced Wattage (RW) 4-Foot OR 8-Foot T8 LAMP ONLY 4-ft T8 Reduced Wattage Lamp Only | C241: Lamp | D241: 0.5
A242: Interior Lighting | B242: Reduced Wattage (RW) 4-Foot OR 8-Foot T8 LAMP ONLY 8-ft T8 Reduced Wattage Lamp Only | C242: Lamp | D242: 0.5
A243: Interior Lighting | B243: New High Bay T8/T5 Fluorescent Fixtures with Electronic Ballast replacing HID T8/T5 (w/ electronic ballast) | C243: Watt Reduction*** | D243: 0.3
A244: Interior Lighting | B244: LED Lighting LED, T-1, or Electroluminescent Exit Signs | C244: Sign | D244: 20
A245: Interior Lighting | B245: LED Lighting LED Lamp *NEW Higher Rebate! | C245: Lamp | D245: 12
A246: Interior Lighting | B246: LED Lighting LED Recessed Downlight Fixture *NEW Higher Rebate! | C246: Fixture | D246: 20
A247: Interior Lighting | B247: LED Lighting LED Open Sign | C247: Sign | D247: 25
A248: Interior Lighting | B248: LED Lighting LED Channel Sign ≤ 2 feet Interior | C248: Letter | D248: 8
A249: Interior Lighting | B249: LED Lighting LED Channel Sign > 2 feet Interior | C249: Letter | D249: 16
A250: Interior Lighting | B250: High Efficiency HID Fixture Integrated Ballast Ceramic Metal Halide Lamps | C250: Fixture | D250: 8
A251: Interior Lighting | B251: High Efficiency HID Fixture Metal Halide (Pulse Start or Ceramic) 100W or Less | C251: Fixture | D251: 20
A252: Interior Lighting | B252: High Efficiency HID Fixture Metal Halide (Pulse Start or Ceramic) 101W - 200W | C252: Fixture | D252: 25
A253: Interior Lighting | B253: High Efficiency HID Fixture Metal Halide (Pulse Start or Ceramic) 201W - 350W | C253: Fixture | D253: 45
A254: Interior Lighting | B254: High Efficiency HID Fixture Metal Halide (Pulse Start or Ceramic) 351W - 400W | C254: Fixture | D254: 65
A255: Interior Lighting | B255: Specialty Lamps Cold Cathode | C255: Lamp | D255: 3
A256: Interior Lighting | B256: Specialty Lamps Dimmable; 3-way; Locking Base CFL | C256: Lamp | D256: 5
A257: Interior Lighting | B257: Specialty Lamps Dimmable; 3-way; Locking Base CFL (dwelling units) | C257: Lamp | D257: 3
A258: Interior Lighting | B258: Controls Occupancy Sensors | C258: Watts Controlled | D258: 0.06
A259: Interior Lighting | B259: Controls Daylighting Sensor Controls | C259: Watts Controlled | D259: 0.06
A260: Exterior Lighting | B260: Exterior LED Lighting LED Channel Sign ≤ 2 feet Exterior | C260: Letter | D260: 8
A261: Exterior Lighting | B261: Exterior LED Lighting LED Channel Sign > 2 feet Exterior | C261: Letter | D261: 16
A262: Exterior Lighting | B262: Exterior LED Lighting Bi-Level LED Parking Lot Fixture | C262: Fixture | D262: 60
A263: Exterior Lighting | B263: Exterior LED Lighting Bi-Level LED Wall Pack Fixture | C263: Fixture | D263: 60
A264: Exterior Lighting | B264: Exterior Specialty Lamps Cold Cathode | C264: Lamp | D264: 3
A265: Exterior Lighting | B265: Exterior Specialty Lamps CFL - High Wattage (>40W) Screw-In , Dimmable, or 3-way | C265: Lamp | D265: 15
A266: Exterior Lighting | B266: Outdoor Area or Street Lights Metal Halide (Pulse Start or Ceramic) 100W or Less | C266: Fixture | D266: 20
A267: Exterior Lighting | B267: Outdoor Area or Street Lights Metal Halide (Pulse Start or Ceramic) 101W - 200W | C267: Fixture | D267: 25
A268: Exterior Lighting | B268: Outdoor Area or Street Lights Metal Halide (Pulse Start or Ceramic) 201W - 350 | C268: Fixture | D268: 45
A269: Exterior Lighting | B269: Outdoor Area or Street Lights Metal Halide (Pulse Start or Ceramic) 351W - 400W | C269: Fixture | D269: 65
A270: Exterior Lighting | B270: Outdoor Area or Street Lights LED or Induction replacing 175W or Less HID | C270: Fixture | D270: 40
A271: Exterior Lighting | B271: Outdoor Area or Street Lights LED or Induction replacing 176W - 250W HID | C271: Fixture | D271: 50
A272: Exterior Lighting | B272: Outdoor Area or Street Lights LED or Induction replacing 251W - 400W HID | C272: Fixture | D272: 60
A273: Exterior Lighting | B273: Exterior Hardwired Compact Fluorescent Fixtures 29W or Less | C273: Fixture | D273: 20
A274: Exterior Lighting | B274: Exterior Hardwired Compact Fluorescent Fixtures 30W or Greater | C274: Fixture | D274: 40
A275: 24/7 Lighting | B275: 24/7 LED Lighting Bi-Level LED Parking Lot Fixture | C275: Fixture | D275: 60
A276: 24/7 Lighting | B276: 24/7 LED Lighting Bi-Level LED Wall Pack Fixture | C276: Fixture | D276: 60
A277: 24/7 Lighting | B277: 24/7 Specialty Lamps Cold Cathode | C277: Lamp | D277: 3
A278: 24/7 Lighting | B278: 24/7 Specialty Lamps CFL - High Wattage (>40W) Screw-In (Exterior ONLY) | C278: Lamp | D278: 15
A279: 24/7 Lighting | B279: 24/7 Specialty Lamps CFL - Dimmable, or 3-way | C279: Lamp | D279: 15
A280: 24/7 Lighting | B280: 24/7 Outdoor Area or Street Lights Metal Halide (Pulse Start or Ceramic) 100W or Less | C280: Fixture | D280: 20
A281: 24/7 Lighting | B281: 24/7 Outdoor Area or Street Lights Metal Halide (Pulse Start or Ceramic) 101W - 200W | C281: Fixture | D281: 25
A282: 24/7 Lighting | B282: 24/7 Outdoor Area or Street Lights Metal Halide (Pulse Start or Ceramic) 201W - 350 | C282: Fixture | D282: 45
A283: 24/7 Lighting | B283: 24/7 Outdoor Area or Street Lights Metal Halide (Pulse Start or Ceramic) 351W - 400W | C283: Fixture | D283: 65
A284: 24/7 Lighting | B284: 24/7 Outdoor Area or Street Lights LED or Induction replacing 175W or Less HID | C284: Fixture | D284: 40
A285: 24/7 Lighting | B285: 24/7 Outdoor Area or Street Lights LED or Induction replacing 176W - 250W HID | C285: Fixture | D285: 50
A286: 24/7 Lighting | B286: 24/7 Outdoor Area or Street Lights LED or Induction replacing 251W - 400W HID | C286: Lamp | D286: 60
A287: 24/7 Lighting | B287: 24/7 Traffic and Pedestrain Signals LED traffic lights - Green 8" | C287: Lamp | D287: 10
A288: 24/7 Lighting | B288: 24/7 Traffic and Pedestrain Signals LED traffic lights - Green 12" | C288: Lamp | D288: 20
A289: 24/7 Lighting | B289: 24/7 Traffic and Pedestrain Signals LED traffic lights - Red 8" | C289: Lamp | D289: 10
A290: 24/7 Lighting | B290: 24/7 Traffic and Pedestrain Signals LED traffic lights - Red 12" | C290: Lamp | D290: 20
A291: 24/7 Lighting | B291: 24/7 Traffic and Pedestrain Signals LED traffic lights - Walk/Don't Walk or Arrow - 9" | C291: Lamp | D291: 5
A292: 24/7 Lighting | B292: 24/7 Traffic and Pedestrain Signals LED traffic lights - Walk/Don't Walk or Arrow - 12" | C292: Lamp | D292: 5
A293: 24/7 Lighting | B293: 24/7 New T8/T5 Fluorescent Fixtures with Electronic Ballast replacing HID T8/T5 (w/ electronic ballast) | C293: Watt Reduction*** | D293: 0.3
A294: 24/7 Lighting | B294: 24/7 Controls Bi-Level Stairwell/Hall/Garage Fixtures w/ integrated sensors | C294: Fixture | D294: 20
C296: Unit | D296: Incentive
A297: Envelope | B297: Window Film | C297: Sq. Ft. of Glazing | D297: 1.2
C299: Unit | D299: Incentive
A300: Refrigeration | B300: Strip Curtains on Walk-ins and Freezers | C300: Sq. Ft. | D300: 3
A301: Refrigeration | B301: Night Covers for Displays | C301: Lin. Ft. of Case | D301: 5
A302: Refrigeration | B302: EC Motor for Reach-in Refrigerator or Freezer Cases | C302: Motor | D302: 25
A303: Refrigeration | B303: Evaporator Fan Controller - Shade Pole Motor | C303: Motor | D303: 40
A304: Refrigeration | B304: Anti Sweat Heater Controls | C304: Lin. Ft. of Case | D304: 20
A305: Refrigeration | B305: LED Refrigeration Case Lighting | C305: Door | D305: 40
A306: Refrigeration | B306: ENERGY STAR® Solid Door Freezer | C306: Unit | D306: 100
A307: Refrigeration | B307: ENERGY STAR® Glass Door Freezer | C307: Unit | D307: 350
C309: Unit | D309: Incentive
A310: Food Service Equipment | B310: ENERGY STAR® Steam Cookers | C310: Unit | D310: 400
A311: Food Service Equipment | B311: Combination Oven | C311: Unit | D311: 800
A312: Food Service Equipment | B312: ENERGY STAR® Hot Holding Cabinet - 1/2 size | C312: Unit | D312: 200
A313: Food Service Equipment | B313: ENERGY STAR® Hot Holding Cabinet - 3/4 size | C313: Unit | D313: 300
A314: Food Service Equipment | B314: ENERGY STAR® Hot Holding Cabinet - Full size | C314: Unit | D314: 400
A315: Food Service Equipment | B315: ENERGY STAR® Beverage Vending Machine | C315: Unit | D315: 80
A316: Food Service Equipment | B316: ENERGY STAR® Commercial Vat Fryer | C316: Unit | D316: 225
A317: Food Service Equipment | B317: ENERGY STAR® Griddle | C317: Unit | D317: 125
C319: Unit | D319: Incentive
A320: Plug Load Controls | B320: Beverage Vending Machine Control | C320: Unit | D320: Contact for offer
A321: Plug Load Controls | B321: Refrigerated Cooler Control | C321: Unit | D321: Contact for offer
A322: Plug Load Controls | B322: Snack Machine Control | C322: Unit | D322: Contact for offer
A323: Plug Load Controls | B323: Plug Load Occupancy Sensors | C323: Unit | D323: 25
C325: Unit | D325: Incentive
A326: Motors | B326: 1200 RPM - 1 HP - Open | C326: motor | D326: 1
A327: Motors | B327: 1200 RPM - 1 HP - Open | C327: motor | D327: 1.5
A328: Motors | B328: 1200 RPM - 1 HP - Open | C328: motor | D328: 2
A329: Motors | B329: 1200 RPM - 1 HP - Open | C329: motor | D329: 3
A330: Motors | B330: 1200 RPM - 1 HP - Open | C330: motor | D330: 4
A331: Motors | B331: 1200 RPM - 1 HP - Open | C331: motor | D331: 9
A332: Motors | B332: 1200 RPM - 1 HP - Open | C332: motor | D332: 10
A333: Motors | B333: 1200 RPM - 1 HP - Open | C333: motor | D333: 11
A334: Motors | B334: 1200 RPM - 1 HP - Open | C334: motor | D334: 12
A335: Motors | B335: 1200 RPM - 1 HP - Open | C335: motor | D335: 15
A336: Motors | B336: 1200 RPM - 1 HP - Open | C336: motor | D336: 17
A337: Motors | B337: 1200 RPM - 1 HP - Open | C337: motor | D337: 20
A338: Motors | B338: 1200 RPM - 1 HP - Open | C338: motor | D338: 24
A339: Motors | B339: 1200 RPM - 1 HP - Open | C339: motor | D339: 25
A340: Motors | B340: 1200 RPM - 1 HP - Open | C340: motor | D340: 30
A341: Motors | B341: 1200 RPM - 1 HP - Open | C341: motor | D341: 40
A342: Motors | B342: 1200 RPM - 1 HP - Open | C342: motor | D342: 50
A343: Motors | B343: 1200 RPM - 1 HP - Open | C343: motor | D343: 60
A344: Motors | B344: 1200 RPM - 1 HP - Open | C344: motor | D344: 75
A345: Motors | B345: 1200 RPM - 1 HP - Open | C345: motor | D345: 1
A346: Motors | B346: 1200 RPM - 1 HP - Open | C346: motor | D346: 1.5
A347: Motors | B347: 1200 RPM - 1 HP - Open | C347: motor | D347: 2
A348: Motors | B348: 1200 RPM - 1 HP - Open | C348: motor | D348: 3
A349: Motors | B349: 1200 RPM - 1 HP - Open | C349: motor | D349: 4
A350: Motors | B350: 1200 RPM - 1 HP - Open | C350: motor | D350: 9
A351: Motors | B351: 1200 RPM - 1 HP - Open | C351: motor | D351: 10
A352: Motors | B352: 1200 RPM - 1 HP - Open | C352: motor | D352: 11
A353: Motors | B353: 1200 RPM - 1 HP - Open | C353: motor | D353: 12
A354: Motors | B354: 1200 RPM - 1 HP - Open | C354: motor | D354: 15
A355: Motors | B355: 1200 RPM - 1 HP - Open | C355: motor | D355: 17
A356: Motors | B356: 1200 RPM - 1 HP - Open | C356: motor | D356: 20
A357: Motors | B357: 1200 RPM - 1 HP - Open | C357: motor | D357: 24
A358: Motors | B358: 1200 RPM - 1 HP - Open | C358: motor | D358: 25
A359: Motors | B359: 1200 RPM - 1 HP - Open | C359: motor | D359: 30
A360: Motors | B360: 1200 RPM - 1 HP - Open | C360: motor | D360: 40
A361: Motors | B361: 1200 RPM - 1 HP - Open | C361: motor | D361: 50
A362: Motors | B362: 1200 RPM - 1 HP - Open | C362: motor | D362: 60
A363: Motors | B363: 1200 RPM - 1 HP - Open | C363: motor | D363: 75
A364: Motors | B364: 1200 RPM - 1 HP - Open | C364: motor | D364: 1
A365: Motors | B365: 1200 RPM - 1 HP - Open | C365: motor | D365: 1.5
A366: Motors | B366: 1200 RPM - 1 HP - Open | C366: motor | D366: 2
A367: Motors | B367: 1200 RPM - 1 HP - Open | C367: motor | D367: 3
A368: Motors | B368: 1200 RPM - 1 HP - Open | C368: motor | D368: 4
A369: Motors | B369: 1200 RPM - 1 HP - Open | C369: motor | D369: 9
A370: Motors | B370: 1200 RPM - 1 HP - Open | C370: motor | D370: 10
A371: Motors | B371: 1200 RPM - 1 HP - Open | C371: motor | D371: 11
A372: Motors | B372: 1200 RPM - 1 HP - Open | C372: motor | D372: 12
A373: Motors | B373: 1200 RPM - 1 HP - Open | C373: motor | D373: 15
A374: Motors | B374: 1200 RPM - 1 HP - Open | C374: motor | D374: 17
A375: Motors | B375: 1200 RPM - 1 HP - Open | C375: motor | D375: 20
A376: Motors | B376: 1200 RPM - 1 HP - Open | C376: motor | D376: 24
A377: Motors | B377: 1200 RPM - 1 HP - Open | C377: motor | D377: 25
A378: Motors | B378: 1200 RPM - 1 HP - Open | C378: motor | D378: 30
A379: Motors | B379: 1200 RPM - 1 HP - Open | C379: motor | D379: 40
A380: Motors | B380: 1200 RPM - 1 HP - Open | C380: motor | D380: 50
A381: Motors | B381: 1200 RPM - 1 HP - Open | C381: motor | D381: 60
A382: Motors | B382: 1200 RPM - 1 HP - Open | C382: motor | D382: 75
A383: Motors | B383: 1200 RPM - 1 HP - Open | C383: motor | D383: 1
A384: Motors | B384: 1200 RPM - 1 HP - Open | C384: motor | D384: 1.5
A385: Motors | B385: 1200 RPM - 1 HP - Open | C385: motor | D385: 2
A386: Motors | B386: 1200 RPM - 1 HP - Open | C386: motor | D386: 3
A387: Motors | B387: 1200 RPM - 1 HP - Open | C387: motor | D387: 4
A388: Motors | B388: 1200 RPM - 1 HP - Open | C388: motor | D388: 9
A389: Motors | B389: 1200 RPM - 1 HP - Open | C389: motor | D389: 10
A390: Motors | B390: 1200 RPM - 1 HP - Open | C390: motor | D390: 11
A391: Motors | B391: 1200 RPM - 1 HP - Open | C391: motor | D391: 12
A392: Motors | B392: 1200 RPM - 1 HP - Open | C392: motor | D392: 15
A393: Motors | B393: 1200 RPM - 1 HP - Open | C393: motor | D393: 17
A394: Motors | B394: 1200 RPM - 1 HP - Open | C394: motor | D394: 20
A395: Motors | B395: 1200 RPM - 1 HP - Open | C395: motor | D395: 24
A396: Motors | B396: 1200 RPM - 1 HP - Open | C396: motor | D396: 25
... 47 more rows

Sheet Interior Lighting
B1: NEW CONSTRUCTION INTERIOR LIGHTING
A2: Applicant: fill in gray fields
A3: IMPORTANT NOTICE: Only approved LED lighting is elegible for a rebate; fluorescent and incandescent do not qualify.
A4: Lighting Power Density Incentive for Areas with 50% improvement between ASHRAE 90.1 2007 and 90.1 2016
A5: Building Type | E5: Lighting Power Density1 (W/ft2) | F5: Actual LPD (W/ft2) | G5: Building Area (ft2) | H5: Watts Reduced | I5: Incentive Subtotal ($0.50/Watt)2 | J5: <-- up from $0.30/Watt | M5: 2019 | N5: 2020 20% over 2007 | O5: ASHRAE 90.1 2016 | P5: Avg of 2007 and 2016 | Q5: % Improvement over 2007
E6: =IF(A6="","",VLOOKUP(A6,$L$6:$P$37,5,FALSE)) ->  | H6: =IF(E6="","",IF(AND(ISNUMBER(F6),E6-F6>0),(E6-F6)*G6,0)) ->  | I6: =IF(F6>E6,0,IF(ISNUMBER(F6),H6*0.5,0)) -> 0 | L6: Automotive | M6: 0.9 | N6: =ROUNDDOWN(M6/1.2, 1) -> 0.7 | O6: 0.71 | P6: =ROUNDUP(AVERAGE(M6, O6),2) -> 0.81 | Q6: =+M6/P6-1 -> 0.1111111111
E7: =IF(A7="","",VLOOKUP(A7,$L$6:$P$37,5,FALSE)) ->  | H7: =IF(E7="","",IF(AND(ISNUMBER(F7),E7-F7>0),(E7-F7)*G7,0)) ->  | I7: 0 | L7: Convention Center | M7: 1.2 | N7: =ROUNDDOWN(M7/1.2, 1) -> 1 | O7: 0.76 | P7: =ROUNDUP(AVERAGE(M7, O7),2) -> 0.98 | Q7: =+M7/P7-1 -> 0.2244897959
H8: =IF(E8="","",IF(AND(ISNUMBER(F8),E8-F8>0),(E8-F8)*G8,0)) ->  | I8: 0 | L8: Court House | M8: 1.2 | N8: 1 | O8: 0.9 | P8: 1.05 | Q8: 0.1428571429
I9: 0 | L9: Dining: Bar Lounge/Leisure | M9: 1.3 | N9: 1 | O9: 0.9 | P9: 1.1 | Q9: 0.1818181818
I10: 0 | L10: Dining: Cafeteria/Fast Food | M10: 1.4 | N10: 1.1 | O10: 0.79 | P10: 1.1 | Q10: 0.2727272727
I11: 0 | L11: Dining: Family | M11: 1.6 | N11: 1.3 | O11: 0.78 | P11: 1.19 | Q11: 0.3445378151
I12: 0 | L12: Dormitory | M12: 1 | N12: 0.8 | O12: 0.61 | P12: 0.81 | Q12: 0.2345679012
I13: 0 | L13: Exercise Center | M13: 1 | N13: 0.8 | O13: 0.65 | P13: 0.83 | Q13: 0.2048192771
I14: 0 | L14: Gymnasium | M14: 1.1 | N14: 0.9 | O14: 0.53 | P14: 0.82 | Q14: 0.3414634146
I15: 0 | L15: Health Care | M15: 1 | N15: 0.8 | O15: 0.68 | P15: 0.84 | Q15: 0.1904761905
I16: 0 | L16: Hospital | M16: 1.2 | N16: 1 | O16: 0.82 | P16: 1.01 | Q16: 0.1881188119
L17: Hotel | M17: 1 | N17: 0.8 | O17: 1.05 | P17: 1.03 | Q17: -0.02912621359
A18: Daylighting Controls Incentive | L18: Library | M18: 1.3 | N18: 1 | O18: 0.75 | P18: 1.03 | Q18: 0.2621359223
A19: Daylighting Controls | E19: Unit Incentive $/Watt | F19: Connected Watts (total) | G19: # of Sensors | H19: Incentive | L19: Manufacturing Facility | M19: 1.3 | N19: 1 | O19: 0.78 | P19: 1.04 | Q19: 0.25
A20: Daylighting Controls*** | E20: 0.06 | H20: =E20*F20 -> 0 | L20: Motel | M20: 1 | N20: 0.8 | O20: 0.9 | P20: 0.95 | Q20: 0.05263157895
L21: Motion Picture Theatre | M21: 1.2 | N21: 1 | O21: 0.83 | P21: 1.02 | Q21: 0.1764705882
A22: Total New Construction Lighting Incentives | H22: =SUM(I6:I16,H20) -> 0 | K22: =H22 -> 0 | L22: Multi-Family (Non-residential meter only) | M22: 0.7 | N22: 0.5 | O22: 0.68 | P22: 0.69 | Q22: 0.01449275362
A23: NOTES: | L23: Museum | M23: 1.1 | N23: 0.9 | O23: 1.06 | P23: 1.08 | Q23: 0.01851851852
A24: 1. Lighting Power Density Incentive for Areas with 50% improvement between ASHRAE 90.1 2007 and 90.1 2016 | L24: Office | M24: 1 | N24: 0.8 | O24: 0.79 | P24: 0.9 | Q24: 0.1111111111
A25: 2. Incentive = (LPD baseline - LPD actual) x area x $0.50 | L25: Parking Garage | M25: 0.3 | N25: 0.2 | O25: 0.15 | P25: 0.23 | Q25: 0.3043478261
A26: 3. A COMCheck document or PNM Interior LPD calculator with supporting calculations must accompany the final application | L26: Penitentiary | M26: 1 | N26: 0.8 | O26: 0.75 | P26: 0.88 | Q26: 0.1363636364
A27: 4. Manufacturer's specification sheets must accompany the final application | L27: Performing Arts Theater | M27: 1.6 | N27: 1.3 | O27: 1.18 | P27: 1.39 | Q27: 0.1510791367
A28: 4. This lighting incentive worksheet should be used for new construction or major renovation projects | L28: Police/Fire Station | M28: 1 | N28: 0.8 | O28: 0.8 | P28: 0.9 | Q28: 0.1111111111
A29: 5. If the lighting project is for retrofit projects, please use the Retrofit Rebate application | L29: Post Office | M29: 1.1 | N29: 0.9 | O29: 0.67 | P29: 0.89 | Q29: 0.2359550562
A30: 6. Include any lighting layout drawings for inspection purposes | L30: Religious Building | M30: 1.3 | N30: 1 | O30: 0.94 | P30: 1.12 | Q30: 0.1607142857
L31: Retail | M31: 1.5 | N31: 1.2 | O31: 1.06 | P31: 1.28 | Q31: 0.171875
L32: School/University | M32: 1.2 | N32: 1 | O32: 0.81 | P32: 1.01 | Q32: 0.1881188119
A33: New Construction Interior Lighting Specifications | L33: Sports Arena | M33: 1.1 | N33: 0.9 | O33: 0.87 | P33: 0.99 | Q33: 0.1111111111
L34: Town Hall | M34: 1.1 | N34: 0.9 | O34: 0.8 | P34: 0.95 | Q34: 0.1578947368
L35: Transportation | M35: 1 | N35: 0.8 | O35: 0.61 | P35: 0.81 | Q35: 0.2345679012
L36: Warehouse | M36: 0.8 | N36: 0.6 | O36: 0.48 | P36: 0.64 | Q36: 0.25
L37: Workshop | M37: 1.4 | N37: 1.1 | O37: 0.9 | P37: 1.15 | Q37: 0.2173913043
A84: The following lighting equipment and applications are excluded from the calculation of interior lighting power. However, any such lighting shall not be exempt unless it is an addition to general lighting and is controlled by an independent control device.
A88: 1. Display or accent lighting that is an essential element for the function performed in galleries,
A89: museums, and monuments.
A90: 2. Lighting that is integral to equipment or instrumentation and is installed by its manufacturer.
A91: 3. Lighting specifically designed for use only during medical or dental procedures and lighting
A92: integral to medical equipment.
A93: 4. Lighting integral to both open and glass-enclosed refrigerator and freezer cases.
A94: 5. Lighting integral to food warming and food preparation equipment.
A95: 6. Lighting specifically designed for the life support of nonhuman life forms.
A96: 7. Lighting in retail display windows, provided the display area is enclosed by ceiling-height
A97: partitions.
A98: 8. Lighting in interior spaces that have been specifically designated as a registered interior
A99: historic landmark.
A100: 9. Lighting that is an integral part of advertising or directional signage.
A101: 10. Exit signs.
A102: 11. Lighting that is for sale or lighting educational demonstration systems.
A103: 12. Lighting for theatrical purposes, including performance, stage, and film and video production.
A104: 13. Lighting for television broadcasting in sporting activity areas.
A105: 14. Casino gaming areas.
A106: 15. Furniture-mounted supplemental task lighting that is controlled by automatic shutoff and
A107: complies with Section 9.4.1.3(c).
A108: 16. Mirror lighting in dressing rooms and accent lighting in religious pulpit and choir areas.
A109: 17. Parking garage transition lighting—lighting for covered vehicle entrances and exits from
A110: buildings and parking structures—that complies with Section 9.4.1.2(a) and 9.4.1.2(c); each
A111: transition zone shall not exceed a depth of 66 ft inside the structure and a width of 50 ft.
A114: Lighting used for the following exterior applications is exempt when equipped with a control device that complies with the requirements of Section 9.4.1.4 and is independent of the control of the nonexempt lighting:
A118: a. Lighting that is integral to signage and installed in the signage by the manufacturer.
A119: b. Lighting for athletic playing areas.
A120: c. Lighting for industrial production, material handling, transportation sites, and associated
A121: storage areas.
A122: d. Theme elements in theme/amusement parks.
A123: e. Lighting used to highlight features of public monuments, public art displays, and registered
A124: historic landmark structures or buildings.
A125: f. Lighting for water features.
A126: 2. Lighting used for the following exterior applications is exempt when controlled separately:
A127: a. Specialized signal, directional, and marker lighting associated with transportation.
A128: b. Lighting integral to equipment or instrumentation and installed by its manufacturer.
A129: c. Lighting for theatrical purposes, including performance, stage, film production, and
A130: video production.
A131: d. Temporary lighting.
A132: e. Lighting for hazardous locations.
A133: f. Lighting for swimming pools.
A134: g. Searchlights.

Sheet Exterior Lighting
B1: NEW CONSTRUCTION EXTERIOR LIGHTING
A2: Applicant: fill in gray fields
A3: IMPORTANT NOTICE: Only approved LED lighting is elegible for a rebate; fluorescent and incandescent do not qualify.
A4: Lighting Power Density Incentive
A5: SURFACE TYPE | D5: Area or Length | E5: Allowed LPD1 (W/ft2, ft or location) | F5: Fixture Description | G5: Building Area, Length or Qty | H5: Number of Fixtures | I5: Fixture Wattage | J5: Total Wattage | K5: Actual LPD (W/ft2, ft or location) | L5: Incentive Subtotal 2 ($0.60/Watt) | M5: <-- previously $0.08/kWh | P5: 2019 | Q5: 2020 20% over 2007 | R5: ASHRAE 90.1 2016 | S5: Avg of 2007 and 2016 | T5: % Improvement over 2007
D6: =_xlfn.IFNA(VLOOKUP(A6,$O$6:$U$24,7,FALSE),"") ->  | E6: =(_xlfn.IFNA(ROUND(VLOOKUP(A6,$O$6:$U$24,5,FALSE),2),"")) ->  | J6: =IF(I6="", " ", H6*I6) ->  | K6: =(IF(OR(F6="",G6=""),"",ROUND(J6/G6,2))) ->  | L6: =IF(A6="", " ", IF(K6>E6,0,(E6-K6)*0.6*G6)) ->  | O6: Uncovered Parking Lots and Drives | P6: 0.15 | Q6: =ROUNDDOWN(P6/1.2, 2) -> 0.12 | R6: 0.08 | S6: =ROUNDUP(AVERAGE(P6, R6),2) -> 0.12 | T6: =+P6/S6-1 -> 0.25 | U6: Area
K7: =(IF(OR(F7="",G7=""),"",ROUND(J7/G7,2))) ->  | L7: =IF(A7="", " ", IF(K7>E7,0,(E7-K7)*0.6*G7)) ->  | O7: Walkway less than 10' Wide | P7: 1 | Q7: =ROUNDDOWN(P7/1.2, 1) -> 0.8 | R7: 0.7 | S7: =ROUNDUP(AVERAGE(P7, R7),2) -> 0.85 | T7: =+P7/S7-1 -> 0.1764705882 | U7: Length
O8: Walkway 10' Wide or Greater | P8: 0.2 | Q8: =ROUNDDOWN(P8/1.2, 2) -> 0.16 | R8: 0.14 | S8: 0.17 | T8: 0.1764705882 | U8: Area
O9: Plaza Areas | P9: 0.2 | Q9: 0.16 | R9: 0.14 | S9: 0.17 | T9: 0.1764705882 | U9: Area
O10: Special Feature Areas | P10: 0.2 | Q10: 0.16 | R10: 0.14 | S10: 0.17 | T10: 0.1764705882 | U10: Area
O11: Stairways | P11: 1 | Q11: =ROUNDDOWN(P11/1.2, 1) -> 0.8 | R11: 0.7 | S11: 0.85 | T11: 0.1764705882 | U11: Area
O12: Landscaping | P12: 1 | Q12: =ROUNDDOWN(P12/1.2, 1) -> 0.8 | R12: 0.04 | S12: 0.52 | T12: 0.9230769231 | U12: Area
O13: Entry - Pedestrian and vehicular | P13: 30 | Q13: =ROUNDDOWN(P13/1.2, 0) -> 25 | R13: 21 | S13: 25.5 | T13: 0.1764705882 | U13: Length
O14: Entry - Canopies and Overhangs | P14: 1.25 | Q14: =ROUNDDOWN(P14/1.2, 2) -> 1.04 | R14: 0.4 | S14: 0.83 | T14: 0.5060240964 | U14: Area
O15: Loading Docks | P15: 1.25 | Q15: 1.04 | R15: 0.35 | S15: 0.8 | T15: 0.5625 | U15: Area
O16: Outdoor Sales Open Area | P16: 0.5 | Q16: 0.41 | R16: 0.5 | S16: 0.5 | T16: 0 | U16: Area
O17: Outdoor Sales Street Frontage | P17: 20 | Q17: =ROUNDDOWN(P17/1.2, 0) -> 16 | R17: 21 | S17: 20.5 | T17: -0.0243902439 | U17: Length
O18: Building Façade - Area | P18: 0.2 | Q18: 0.16 | R18: 0.2 | S18: 0.2 | T18: 0 | U18: Area
O19: Building Façade - Length | P19: 5 | Q19: =ROUNDDOWN(P19/1.2, 0) -> 4 | R19: 5 | S19: 5 | T19: 0 | U19: Length
O20: Automated Teller Machines | P20: 270 | Q20: =ROUNDDOWN(P20/1.2, 0) -> 225 | R20: 135 | S20: 202.5 | T20: 0.3333333333 | U20: Location
O21: Gatehouse Inspection Stations | P21: 1.25 | Q21: =ROUNDDOWN(P21/1.2, 0) -> 1 | R21: 0.5 | S21: 0.88 | T21: 0.4204545455 | U21: Area
N22: =H25 -> 0 | O22: Loading for Law Enforcement | P22: 0.5 | Q22: 0.41 | R22: 0.35 | S22: 0.43 | T22: 0.1627906977 | U22: Area
O23: Drive Through Windows | P23: 400 | Q23: =ROUNDDOWN(P23/1.2, 0) -> 333 | R23: 200 | S23: 300 | T23: 0.3333333333 | U23: Location
D24: =_xlfn.IFNA(VLOOKUP(A24,$O$6:$U$24,4,FALSE),"") ->  | E24: =_xlfn.IFNA(VLOOKUP(A24,$O$6:$U$24,3,FALSE),"") ->  | O24: Parking Near 24 Hour Retail | P24: 800 | Q24: =ROUNDDOWN(P24/1.2, 0) -> 666 | R24: 400 | S24: 600 | T24: 0.3333333333 | U24: Entry
A25: Total New Construction Lighting Incentive | L25: =SUM(L6:L24) -> 0
A26: NOTES:
A27: 1. Lighting Power Density Incentive for Areas with 50% improvement between ASHRAE 90.1 2007 and 90.1 2016 | O27: Uncovered Parking Lots and Drives | P27: Area
A28: 2. Incentive = (LPD baseline - LPD actual) x area x $0.60 | O28: Walkway 10' Wide or Greater | P28: Area
A29: 3. A COMCheck document or supporting calculations must accompany the final application | O29: Plaza Areas | P29: Area
A30: 4. Manufacturer's specification sheets must accompany the final application | O30: Special Feature Areas | P30: Area
A31: 4. This lighting incentive worksheet should be used for new construction or major renovation projects | O31: Stairways | P31: Area
A32: 5. If the lighting project is for retrofit projects, please use the Retrofit Rebate application | O32: Canopies and Overhangs | P32: Area
A33: 6. Include any lighting layout drawings for inspection purposes | O33: Outdoor Sales Open Area | P33: Area
O34: Building Façade - Area | P34: Area
O35: Gatehouse Inspection Stations | P35: Area
A36: New Construction Exterior Lighting Specifications | O36: Loading for Law Enforcement | P36: Area
O37: Parking Near 24 Hour Retail | P37: Entry
O38: Walkway less than 10' Wide | P38: Length
O39: Entry - Main | P39: Length
O40: Entry - Other | P40: Length
O41: Outdoor Sales Street Frontage | P41: Length
O42: Building Façade - Length | P42: Length
O43: Automated Teller Machines | P43: Location
O44: Drive Through Windows | P44: Location

Sheet HVAC
B1: HVAC INCENTIVES | L1: USE THIS SECTION TO REPLACE THE TABLE IN THE SPECS WORKSHEET
A2: Applicant: fill in gray fields at bottom | B2: Click here for instructions to complete this worksheet
A3: Equipment Type | D3: Size Category | G3: Qualifying Efficiency* | H3: Incentive (per ton) | I3: Efficiency Bonus | L3: Equipment Type | M3: Size Category | P3: Qualifying Efficiency* | Q3: Incentive (per ton) | R3: Efficiency Bonus
A4: Unitary and Split Air Conditioning Systems | D4: < 65,000 Btu/h (5.4 tons) | G4: 14.0 SEER and 12.0 EER | H4: 25 | I4: 15 | L4: Unitary and Split Air Conditioning Systems | M4: < 65,000 Btu/h (5.4 tons) | P4: 14.0 SEER and 12.0 EER | Q4: 25 | R4: 15
D5: ≥ 65,000 Btu/h and < 135,000 Btu/h (5.4-11.25 tons) | G5: 12.0 EER** | M5: ≥ 65,000 Btu/h and < 135,000 Btu/h (5.4-11.25 tons) | P5: 12.0 EER**
D7: ≥ 135,000 Btu/h and < 240,000 Btu/h (11.25-20 tons) | G7: 12.0 EER** | M7: ≥ 135,000 Btu/h and < 240,000 Btu/h (11.25-20 tons) | P7: 12.0 EER**
D9: ≥ 240,000 Btu/h and < 760,000 Btu/h (20-63 Tons) | G9: 10.8 EER** | M9: ≥ 240,000 Btu/h and < 760,000 Btu/h (20-63 Tons) | P9: 10.8 EER**
D11: ≥ 760,000 Btu/h (> 63 tons) | G11: 10.2 EER** | M11: ≥ 760,000 Btu/h (> 63 tons) | P11: 10.2 EER**
A13: Air Source Heat Pumps | D13: < 65,000 Btu/h (5.4 tons) | G13: 14 SEER and 12.0 EER and 7.7 HSPF | H13: 40 | I13: 15 | L13: Air Source Heat Pumps | M13: < 65,000 Btu/h (5.4 tons) | P13: 14 SEER and 12.0 EER and 7.7 HSPF | Q13: 40 | R13: 15
D14: ≥ 65,000 Btu/h and < 135,000 Btu/h (5.4-11.25 tons) | G14: 11.6 EER** and 3.2 COP | M14: ≥ 65,000 Btu/h and < 135,000 Btu/h (5.4-11.25 tons) | P14: 11.6 EER** and 3.2 COP
D16: ≥ 135,000 Btu/h and < 240,000 Btu/h (11.25-20 tons) | G16: 11.2 EER** and 3.1 COP | M16: ≥ 135,000 Btu/h and < 240,000 Btu/h (11.25-20 tons) | P16: 11.2 EER** and 3.1 COP
D18: ≥ 240,000 Btu/h and < 760,000 Btu/h (20-63 Tons) | G18: 10.0 EER** and 3.1 COP | M18: ≥ 240,000 Btu/h and < 760,000 Btu/h (20-63 Tons) | P18: 10.0 EER** and 3.1 COP
A20: Chillers: Water-Cooled, Centrifugal*** | D20: ≤ 150 tons | G20: 0.569 kW/ton-IPLV | H20: 20 | I20: 20 | L20: Chillers: Water-Cooled, Centrifugal | M20: ≤ 150 tons | P20: 0.569 kW/ton-IPLV | Q20: 20 | R20: 20
D21: >150 tons and ≤ 300 tons | G21: 0.507 kW/ton-IPLV | M21: >150 tons and ≤ 300 tons | P21: 0.507 kW/ton-IPLV
D22: > 300 tons | G22: 0.467 kW/ton-IPLV | M22: > 300 tons | P22: 0.467 kW/ton-IPLV
A23: Chillers: Water Cooled Scroll or Helical-Rotary*** | D23: ≤ 150 tons | G23: 0.575 kW/ton-IPLV | L23: Chillers: Water Cooled Scroll or Helical-Rotary | M23: ≤ 150 tons | P23: 0.575 kW/ton-IPLV
D24: >150 tons and ≤ 300 tons | G24: 0.534 kW/ton-IPLV | M24: >150 tons and ≤ 300 tons | P24: 0.534 kW/ton-IPLV
D25: > 300 tons | G25: 0.486 kW/ton-IPLV | M25: > 300 tons | P25: 0.486 kW/ton-IPLV
A26: Chillers: Water-Cooled Reciprocating, All | D26: ALL | G26: 0.592 kW/ton-IPLV | L26: Chillers: Water-Cooled Reciprocating, All | M26: ALL | P26: 0.592 kW/ton-IPLV
A27: Chillers: Air-Cooled, All | D27: ALL | G27: 0.867 kW/ton-IPLV | H27: 40 | I27: 20 | L27: Chillers: Air-Cooled, All | M27: ALL | P27: 0.867 kW/ton-IPLV | Q27: 40 | R27: 20
A28: Packaged Terminal AC | D28: ALL | G28: 12.5-(0.213 x Btu/h/1000) EER | H28: 50 | I28: 0 | L28: Packaged Terminal AC | M28: ALL | P28: 12.5-(0.213 x Btu/h/1000) EER | Q28: 50 | R28: 0
A29: Packaged Terminal HP | D29: ALL | G29: 12.3-(0.213 x Btu/h/1000) EER | H29: 100 | L29: Packaged Terminal HP | M29: ALL | P29: 12.3-(0.213 x Btu/h/1000) EER | Q29: 100
A30: Variable Refrigerant Flow HP | D30: < 65,000 Btu/h (5.4 tons) | G30: 15.6 SEER and 8.9 HSPF | H30: 40 | I30: 20 | L30: Variable Refrigerant Flow HP | M30: < 65,000 Btu/h (5.4 tons) | P30: 15.6 SEER and 8.9 HSPF | Q30: 40 | R30: 20
D31: ≥ 65,000 Btu/h and < 135,000 Btu/h (5.4-11.25 tons) | G31: 14.8 IEER and 4.0 COP | H31: 40 | I31: 25 | M31: ≥ 65,000 Btu/h and < 135,000 Btu/h (5.4-11.25 tons) | P31: 14.8 IEER and 4.0 COP | Q31: 40 | R31: 25
D32: ≥ 135,000 Btu/h and < 240,000 Btu/h (11.25-20 tons) | G32: 14.2 IEER and 3.2 COP | M32: ≥ 135,000 Btu/h and < 240,000 Btu/h (11.25-20 tons) | P32: 14.2 IEER and 3.2 COP
D33: ≥ 240,000 Btu/h (20 Tons) | G33: 12.7 IEER and 3.7 COP | M33: ≥ 240,000 Btu/h (20 Tons) | P33: 12.7 IEER and 3.7 COP
A34: Equipment Model | B34: Tons | C34: Efficiency Rating | D34: Quantity | E34: Equipment Type | G34: Size Category | I34: Incentive
I35: =IF(E35="","",IF(LEFT(E35,1)<>"C",B35*D35*IF(VLOOKUP(CONCATENATE(E35,G35),$K$108:$N$134,2,FALSE)>C35,0,VLOOKUP(CONCATENATE(E35,G35),$K$108:$N$134,3,FALSE)+(C35-(VLOOKUP(CONCATENATE(E35,G35),$K$108:$N$134,2,FALSE)))*(VLOOKUP(CONCATENATE(E35,G35),$K$108:$N$134,4,FALSE))),B35*D35*IF(VLOOKUP(CONCATENATE(E35,G35),$K$108:$N$134,2,FALSE)<C35,0,VLOOKUP(CONCATENATE(E35,G35),$K$108:$N$134,3,FALSE)+((VLOOKUP(CONCATENATE(E35,G35),$K$108:$N$134,2,FALSE))-C35)*(VLOOKUP(CONCATENATE(E35,G35),$K$108:$N$134,4,FALSE))/0.1))) -> 
A43: Total HVAC Incentives | I43: =SUM(I35:I42) -> 0
A45: Guest Room Energy Management System
A46: Type/ Description | C46: Incentive Unit | E46: Unit Size (tons) | G46: Quantity | H46: Incentive/ Ton | I46: Incentive
A47: Hotel Guest Room Occupancy Sensor | C47: Per Ton Per Room | H47: 60 | I47: =IF(G47*H47*E47=0,"",G47*H47*E47) -> 
A48: Hotel Guest Room Occupancy Sensor | C48: Per Ton Per Room | H48: 60 | I48: =IF(G48*H48*E48=0,"",G48*H48*E48) -> 
A49: Hotel Guest Room Occupancy Sensor | C49: Per Ton Per Room | H49: 60 | I49: =IF(G49*H49*E49=0,"",G49*H49*E49) -> 
A50: Total GREM Incentives | I50: =IF(SUM(I47:I49)=0,"",SUM(I47:I49)) -> 
A52: Indirect Evaporative Cooling
A53: Type/ Description | C53: Number of HMX Units | D53: Tons/ HMX | E53: Equivalent Tons | G53: Quantity | H53: Incentive/ Ton | I53: Incentive
D54: 0.66 | E54: =C54*D54 -> 0 | H54: 100 | I54: =IF(G54*H54*E54=0,"",G54*H54*E54) -> 
D55: 0.66 | E55: =C55*D55 -> 0 | H55: 100 | I55: =IF(G55*H55*E55=0,"",G55*H55*E55) -> 
D56: 0.66 | E56: 0 | H56: 100 | I56: =IF(G56*H56*E56=0,"",G56*H56*E56) -> 
A57: Total Indirect Evaporative Cooling Incentives | I57: =IF(SUM(I54:I56)=0,"",SUM(I54:I56)) -> 
A58: HMX = Heat Mass Exchange units
A59: Total All HVAC Form Incentives | H59: =SUM(I43,I50,I57) -> 0
A60: * Use SEER for Unitary and Split Units less than 5.4 tons and EER for units larger than 5.4 tons; values available from CEE 2012 Tier 2; Use IEER for VRF Units; IPLV values based on ASHRAE 90.1 2010; see specifications page for complete list. Attach AHRI Rating Sheet. ** Units with electric resistance heating must have EER values 0.2 higher than the efficiencies listed. *** Unit efficiency for chillers should be provided in kW per ton – IPLV where IPLV = Integrated Part Load Value; values based on ASHRAE 90.1 2010. Attach manufacturer's rating sheet for credit.
A65: INSTRUCTIONS TO COMPLETE THIS WORKSHEET:
A66: Equipment Model: | B66: Enter the equipment model as shown on the invoice; provide the specification sheet(s) that accompany the model
A67: Tons: | B67: Enter the equipment tonnage from the AHRI or manufacturer specification sheet
A68: Efficiency Rating: | B68: Enter the equipment efficiency rating from the AHRI or manufacturer specification sheet; for chillers, kW/ton = 12/IPLV EER
A69: Quantity: | B69: Enter the number of units that fit this size and efficiency rating
A70: Equipment Type: | B70: Enter the equipment type from the drop-down menu
A71: Size Category: | B71: Enter the equipment size from the drop-down menu
A74: HVAC Specifications
K84: Unitary and Split Air Conditioning Systems
K85: Air Source Heat Pumps
K86: Chillers: Water-Cooled: Centrifugal
K87: Chillers: Water-Cooled: Scroll or Screw
K88: Chillers: Water-Cooled: Reciprocating
K89: Chillers: Air-Cooled
K90: Packaged Terminal AC
K91: Packaged Terminal HP
K92: Variable Refrigerant Flow HP
K95: < 65,000 Btu/h (5.4 tons)
K96: ≥ 65,000 Btu/h and < 135,000 Btu/h (5.4-11.25 tons)
K97: ≥ 135,000 Btu/h and < 240,000 Btu/h (11.25-20 tons)
K98: ≥ 240,000 Btu/h and < 760,000 Btu/h (20-63 Tons)
K99: ≥ 760,000 Btu/h (> 63 tons)
K100: ≤ 150 tons
K101: >150 tons and ≤ 300 tons
K102: > 300 tons
K103: ALL
L108: Level Normal | M108: Incentive | N108: Bonus | O108: Level 2 | P108: Level 3 | Q108: Level 4 | R108: Min | S108: Max
K110: Unitary and Split Air Conditioning Systems< 65,000 Btu/h (5.4 tons) | L110: 14 | M110: 25 | N110: 15 | O110: =L110+1 -> 15 | P110: =O110+1 -> 16 | Q110: 17 | R110: 0 | S110: 5.4
K111: Unitary and Split Air Conditioning Systems≥ 65,000 Btu/h and < 135,000 Btu/h (5.4-11.25 tons) | L111: 12 | M111: 25 | N111: 15 | O111: =L111+1 -> 13 | P111: 14 | Q111: 15
K112: Unitary and Split Air Conditioning Systems≥ 135,000 Btu/h and < 240,000 Btu/h (11.25-20 tons) | L112: 12 | M112: 25 | N112: 15 | O112: =L112+1 -> 13 | P112: 14 | Q112: 15 | R112: 11.25 | S112: 20
K113: Unitary and Split Air Conditioning Systems≥ 240,000 Btu/h and < 760,000 Btu/h (20-63 Tons) | L113: 10.8 | M113: 25 | N113: 15 | O113: =L110+1 -> 15 | P113: =O110+1 -> 16 | Q113: =P110+1 -> 17 | R113: 20 | S113: 63
K114: Unitary and Split Air Conditioning Systems≥ 760,000 Btu/h (> 63 tons) | L114: 10.2 | M114: 25 | N114: 15 | O114: =L114+1 -> 11.2 | P114: 12.2 | Q114: 13.2 | R114: 63 | S114: 100000
K115: Air Source Heat Pumps< 65,000 Btu/h (5.4 tons) | L115: 14 | M115: 40 | N115: 15 | O115: =L115+1 -> 15 | P115: 16 | Q115: 17 | R115: 0 | S115: 5.4
K116: Air Source Heat Pumps≥ 65,000 Btu/h and < 135,000 Btu/h (5.4-11.25 tons) | L116: 11.6 | M116: 40 | N116: 15 | O116: =L116+1 -> 12.6 | P116: 13.6 | Q116: 14.6 | R116: 5.4 | S116: 11.25
K117: Air Source Heat Pumps≥ 135,000 Btu/h and < 240,000 Btu/h (11.25-20 tons) | L117: 11.2 | M117: 40 | N117: 15 | O117: =L117+1 -> 12.2 | P117: 13.2 | Q117: 14.2 | R117: 11.25 | S117: 20
K118: Air Source Heat Pumps≥ 240,000 Btu/h and < 760,000 Btu/h (20-63 Tons) | L118: 10 | M118: 40 | N118: 15 | O118: =L115+1 -> 15 | P118: =O115+1 -> 16 | Q118: =P115+1 -> 17 | R118: 20 | S118: 63
K119: Air Source Heat Pumps≥ 760,000 Btu/h (> 63 tons) | L119: 10 | M119: 40 | N119: 15 | O119: =L119+1 -> 11 | P119: =O119+1 -> 12 | Q119: 13 | R119: 63 | S119: 100000
K120: Chillers: Water-Cooled: Centrifugal≤ 150 tons | L120: 0.569 | M120: 20 | N120: 20 | O120: 0.54 | P120: =ROUNDUP(L120/0.9*0.7,2) -> 0.45 | Q120: =ROUNDUP(L120/0.9*0.6,2) -> 0.38 | R120: 0 | S120: 150
K121: Chillers: Water-Cooled: Centrifugal>150 tons and ≤ 300 tons | L121: 0.507 | M121: 20 | N121: 20 | O121: 0.48 | P121: 0.4 | Q121: 0.34 | R121: 150 | S121: 300
K122: Chillers: Water-Cooled: Centrifugal> 300 tons | L122: 0.467 | M122: 20 | N122: 20 | O122: 0.44 | P122: 0.37 | Q122: 0.32 | R122: 300 | S122: 100000
K123: Chillers: Water-Cooled: ReciprocatingALL | L123: 0.592 | M123: 20 | N123: 20 | O123: 0.54 | P123: 0.47 | Q123: 0.4 | R123: 0 | S123: 75
K124: Chillers: Water-Cooled: Scroll or Screw≤ 150 tons | L124: 0.575 | M124: 20 | N124: 20 | O124: 0.54 | P124: 0.45 | Q124: 0.39 | R124: 75 | S124: 150
K125: Chillers: Water-Cooled: Scroll or Screw>150 tons and ≤ 300 tons | L125: 0.534 | M125: 20 | N125: 20 | O125: 0.5 | P125: 0.42 | Q125: 0.36 | R125: 150 | S125: 300
K126: Chillers: Water-Cooled: Scroll or Screw> 300 tons | L126: 0.486 | M126: 20 | N126: 20 | O126: 0.46 | P126: 0.38 | Q126: 0.33 | R126: 300 | S126: 100000
K127: Chillers: Air-CooledALL | L127: 0.867 | M127: 40 | N127: 20 | O127: =ROUND(L127/0.9*0.8,2) -> 0.77 | P127: 0.68 | Q127: 0.58 | R127: 0 | S127: 150
K128: Chillers: Air-Cooled> 150 tons | L128: 0.867 | M128: 15 | N128: 20 | O128: =ROUND(L128/0.9*0.8,2) -> 0.77 | P128: 0.68 | Q128: 0.58 | R128: 150 | S128: 100000
K129: Packaged Terminal ACALL | L129: =12.5-(0.213*B35*12000/1000) -> 12.5 | M129: 50 | N129: 0 | O129: =L129+1 -> 13.5 | P129: =O129+1 -> 14.5 | Q129: 15.5 | R129: 0 | S129: 100000
K130: Packaged Terminal HPALL | L130: =12.3-(0.213*B36*12000/1000) -> 12.3 | M130: 100 | N130: 0 | O130: 13.3 | P130: 14.3 | Q130: 15.3 | R130: 0 | S130: 100000
K131: Variable Refrigerant Flow HP≥ 65,000 Btu/h and < 135,000 Btu/h (5.4-11.25 tons) | L131: 14.8 | M131: 40 | N131: 25 | O131: 15.8 | P131: 16.8 | Q131: 17.8 | R131: 5.4 | S131: 11.25
K132: Variable Refrigerant Flow HP≥ 135,000 Btu/h and < 240,000 Btu/h (11.25-20 tons) | L132: 14.2 | M132: 40 | N132: 25 | O132: 15.2 | P132: 16.2 | Q132: 17.2 | R132: 11.25 | S132: 20
K133: Variable Refrigerant Flow HP≥ 240,000 Btu/h and < 760,000 Btu/h (20-63 Tons) | L133: 12.7 | M133: 40 | N133: 25 | O133: 13.7 | P133: 14.7 | Q133: 15.7 | R133: 20 | S133: 63
K134: Variable Refrigerant Flow HP< 65,000 Btu/h (5.4 tons) | L134: 15.6 | M134: 40 | N134: 25 | O134: 16.6 | P134: 17.6 | Q134: 18.6 | R134: 63 | S134: 100000
O136: **used stated values for Level 2, if available. Else was rounded up to the 10s of watts

Sheet Food Service
B1: Food Service Equipment Incentives
A3: Update: Starting 2020 Food Service equipment ONLY qualifies under the Distributor Discount Program. For details on how to participate in the program please visit our website (link below).
D7: Distributor Discount Program
M16: FALSE
M28: FALSE

Sheet Custom
D1: CUSTOM INCENTIVES
A2: Applicant: fill in gray fields | D2: *Please attach supporting documentation as described in the specifications*
A3: Item 1
A4: Description | H4: $/kWh | I4: Subtotal
E5: Annual kWh Savings | H5: 0.08 | I5: =IF(AND(G5>0,G11>0,G13>0),MIN(G5*H5,G11,0.5*G13),0) -> 0
E7: kW Savings
E9: Annual Operating Hours | L9: =IF(ISNUMBER(I5)=TRUE,I5,0) -> 0
E11: Incremental Measure Cost
E13: Total Project Cost
A15: Item 2
A16: Description | H16: $/kWh | I16: Subtotal
E17: Annual kWh Savings | H17: 0.08 | I17: =IF(AND(G17>0,G23>0,G25>0),MIN(G17*H17,G23,0.5*G25),0) -> 0
E19: kW Savings
E21: Annual Operating Hours | L21: =IF(ISNUMBER(I17)=TRUE,I17,0) -> 0
E23: Incremental Measure Cost
E25: Total Project Cost
A27: Item 3
A28: Description | H28: $/kWh | I28: Subtotal
E29: Annual kWh Savings | H29: 0.08 | I29: =IF(AND(G29>0,G35>0,G37>0),MIN(G29*H29,G35,0.5*G37),0) -> 0
E31: kW Savings
E33: Annual Operating Hours | L33: =IF(ISNUMBER(I29)=TRUE,I29,0) -> 0
E35: Incremental Measure Cost
E37: Total Project Cost
A39: Item 4
A40: Description | H40: $/kWh | I40: Subtotal
E41: Annual kWh Savings | H41: 0.08 | I41: =IF(AND(G41>0,G47>0,G49>0),MIN(G41*H41,G47,0.5*G49),0) -> 0
E43: kW Savings
E45: Annual Operating Hours | L45: =IF(ISNUMBER(I41)=TRUE,I41,0) -> 0
E47: Incremental Measure Cost
E49: Total Project Cost
A51: Total Custom Incentives | I51: =L51 -> 0 | L51: =L9+L21+L33+L45 -> 0
A53: Incremental measure cost (IMC) is the difference between the cost of an energy-efficient piece of equipment and a new
A54: standard-efficiency piece of equipment. The IMC of energy-efficient equipment installed before an old piece of equipment
A55: reaches the end of its life (such as lighting equipment) generally is equal to the total cost of the energy-efficient equipment,
A56: including labor. The IMC of energy-efficient equipment installed at or near the end of life of an old piece of equipment (such as
A57: chillers, motors, air-conditioning units) generally is equal to the difference in cost between the energy-efficient equipment and
A58: the new standard-efficiency piece of equipment, not including labor.
A59: The rebate will be shown as 100% of the Incremental Measure Cost or 50% of the Total Project Cost. All Custom measures subject to approval using the Utility Cost Test (UCT). Submit calculations and costs for assistance.
A62: Custom Specifications

Sheet NC Whole Bldg
C1: NC WHOLE BUILDING INCENTIVES
A2: Applicant: fill in gray fields
A3: New Construction Whole Building Performance - 10% to 20% Savings
A4: Please attach supporting documentation as described in the specifications. Savings relative to ASHRAE 90.1 - 2007.
A5: Item 1
A6: Description | H6: $/kWh | I6: Subtotal
E7: Annual kWh Savings | H7: 0.1 | I7: =IF(AND(G7>0,G13>0,G15>0),MIN(G7*H7,G13,0.5*G15),0) -> 0
E9: kW Savings
E11: Annual Operating Hours | L11: =IF(ISNUMBER(I7)=TRUE,I7,0) -> 0
E13: Incremental Measure Cost
E15: Total Project Cost
A17: Item 2
A18: Description | H18: $/kWh | I18: Subtotal
E19: Annual kWh Savings | H19: 0.1 | I19: =IF(AND(G19>0,G25>0,G27>0),MIN(G19*H19,G25,0.5*G27),0) -> 0
E21: kW Savings
E23: Annual Operating Hours | L23: =IF(ISNUMBER(I19)=TRUE,I19,0) -> 0
E25: Incremental Measure Cost
E27: Total Project Cost
A29: New Construction Whole Building Performance - Greater than 20% Savings
A30: Please attach supporting documentation as described in the specifications. Savings relative to ASHRAE 90.1 - 2007.
A31: Item 1
A32: Description | H32: $/kWh | I32: Subtotal
E33: Annual kWh Savings | H33: 0.12 | I33: =IF(AND(G33>0,G39>0,G41>0),MIN(G33*H33,G39,0.5*G41),0) -> 0
E35: kW Savings
E37: Annual Operating Hours | L37: =IF(ISNUMBER(I33)=TRUE,I33,0) -> 0
E39: Incremental Measure Cost
E41: Total Project Cost
A43: Item 2
A44: Description | H44: $/kWh | I44: Subtotal
E45: Annual kWh Savings | H45: 0.12 | I45: =IF(AND(G45>0,G51>0,G53>0),MIN(G45*H45,G51,0.5*G53),0) -> 0
E47: kW Savings
E49: Annual Operating Hours | L49: =IF(ISNUMBER(I45)=TRUE,I45,0) -> 0
E51: Incremental Measure Cost
E53: Total Project Cost
A55: Total New Construction Incentives | I55: =L55 -> 0 | L55: =L11+L23+L37+L49 -> 0
H56: =IF(L55>300000,"Measure Cap Reached","") -> 
A59: New Construction Whole Bldg Performance Specifications
